bitfinex/quotes_BTCUSD_20250714
["timestamp","ask_amount","ask_price","bid_price","bid_amount"]
[1752516018313,0.00255382,119910.0,119900.0,0.75295475]
[1752516018752,0.01415382,119920.0,119910.0,0.19180967]
[1752516018968,0.03025382,119920.0,119910.0,0.62285875]
[1752516019394,0.03222382,119920.0,119910.0,0.62285875]
[1752516019609,0.03542382,119920.0,119910.0,0.62285875]
[1752516019825,0.04868349,119920.0,119910.0,0.62285875]
[1752516020038,0.05068349,119920.0,119910.0,0.62285875]
[1752516021796,0.05068349,119920.0,119910.0,0.62080875]
[1752516022023,0.0311,119910.0,119900.0,0.19182483]
[1752516022270,0.03943896,119910.0,119900.0,0.15910706]
[1752516022520,0.04460896,119910.0,119900.0,0.15910706]
[1752516022735,0.04460896,119910.0,119900.0,0.58810614]
[1752516022962,0.03627,119910.0,119900.0,0.58810614]
[1752516023209,0.03627,119910.0,119900.0,0.58910614]
[1752516023419,0.05294813,119910.0,119900.0,0.58910614]
[1752516023856,0.06962681,119910.0,119900.0,0.58910614]
[1752516024260,0.04460896,119910.0,119900.0,0.58910614]
[1752516024480,0.05294806,119910.0,119900.0,0.58910614]
[1752516024705,0.07796591,119910.0,119900.0,0.58910614]
[1752516024983,0.06962647,119910.0,119900.0,0.58910614]
[1752516025208,0.06128723,119910.0,119900.0,0.92910614]
[1752516025434,0.05294806,119910.0,119900.0,0.92910614]
[1752516025653,0.17994806,119910.0,119900.0,0.92910614]
[1752516025880,0.17160896,119910.0,119900.0,0.92910614]
[1752516026081,0.16007,119910.0,119900.0,0.93115614]
[1752516026542,0.02807,119910.0,119900.0,0.93115614]
[1752516027600,0.15521534,119920.0,119910.0,0.19180967]
[1752516027601,0.1432,119920.0,119910.0,0.19180967]
[1752516027824,0.0162,119920.0,119910.0,0.62285875]
[1752516028034,0.0162,119920.0,119910.0,0.62585875]
[1752516029416,0.0112,119920.0,119910.0,0.62585875]
[1752516029629,0.0266,119920.0,119910.0,0.62585875]
[1752516030618,0.0266,119920.0,119910.0,0.62589875]
[1752516031253,0.0154,119920.0,119910.0,0.62589875]
[1752516031466,0.1448,119930.0,119920.0,0.19179368]
[1752516031669,0.1448,119930.0,119920.0,0.62079276]
[1752516031670,0.15520757,119930.0,119920.0,0.62079276]
[1752516031876,0.15813757,119930.0,119920.0,0.62079276]
[1752516032082,0.1831511,119930.0,119920.0,0.62079276]
[1752516032502,0.19845103,119930.0,119920.0,0.62079276]
[1752516032734,0.19011305,119930.0,119920.0,0.62079276]
[1752516032941,0.19211305,119930.0,119920.0,0.62079276]
[1752516033146,0.18377521,119930.0,119920.0,0.62079276]
[1752516033365,0.18377521,119930.0,119920.0,0.62083276]
[1752516033574,0.2055247,119930.0,119920.0,0.62083276]
[1752516033790,0.18051178,119930.0,119920.0,0.62083276]
[1752516034007,0.0218,119930.0,119920.0,1.05485184]
[1752516034220,0.0064,119930.0,119920.0,1.18185184]
[1752516035308,0.0064,119930.0,119920.0,1.05485184]
[1752516035513,0.038,119930.0,119920.0,0.75285276]
[1752516035724,0.0216,119930.0,119920.0,0.75285276]
[1752516036368,0.038,119930.0,119920.0,1.18185184]
[1752516036603,0.038,119930.0,119920.0,0.75285276]
[1752516037429,0.0216,119930.0,119920.0,0.75285276]
[1752516038307,0.0381,119930.0,119920.0,0.75285276]
[1752516040170,0.0381,119930.0,119920.0,1.05485184]
[1752516040373,0.0381,119930.0,119920.0,1.18181184]
[1752516040915,0.02150823,119930.0,119920.0,1.18181184]
[1752516041124,0.00630823,119930.0,119920.0,1.18181184]
[1752516042615,0.02170823,119930.0,119920.0,1.18181184]
[1752516044142,0.03740823,119930.0,119920.0,0.75281276]
[1752516044363,0.04240823,119930.0,119920.0,0.19183368]
[1752516044584,0.17770587,119930.0,119920.0,0.19183368]
[1752516044788,0.18604358,119930.0,119920.0,0.62083276]
[1752516045005,0.19438142,119930.0,119920.0,0.62083276]
[1752516045623,0.20271933,119930.0,119920.0,0.62083276]
[1752516046301,0.08409738,119930.0,119920.0,0.19183368]
[1752516046521,0.08409738,119930.0,119920.0,0.62083276]
[1752516046964,0.21105738,119930.0,119920.0,0.62083276]
[1752516047178,0.37782132,119930.0,119920.0,0.62083276]
[1752516047390,0.37782187,119930.0,119920.0,0.62083283]
[1752516047606,0.25086187,119930.0,119920.0,0.62083283]
[1752516047887,0.36948416,119930.0,119920.0,0.62083283]
[1752516048116,0.36948416,119930.0,119920.0,0.61249436]
[1752516048327,0.36114632,119930.0,119920.0,0.6208329]
[1752516048541,0.18604419,119930.0,119920.0,0.6291713]
[1752516048958,0.05908419,119930.0,119920.0,0.6291713]
[1752516049065,0.18604419,119930.0,119920.0,0.6291713]
[1752516049279,0.18604385,119930.0,119920.0,0.6291713]
[1752516049655,0.17770594,119930.0,119920.0,0.6291713]
[1752516049785,0.05074587,119930.0,119920.0,0.6291713]
[1752516049992,0.03740823,119930.0,119920.0,1.06020038]
[1752516050202,0.00668387,119940.0,119930.0,0.53177768]
[1752516050425,0.00668387,119940.0,119930.0,0.96579676]
[1752516050599,0.00668387,119940.0,119930.0,1.04714387]
[1752516050811,0.00668387,119940.0,119930.0,1.07984387]
[1752516051026,1e-08,119940.0,119930.0,1.50884295]
[1752516051227,1e-08,119940.0,119930.0,1.20680387]
[1752516051470,1e-08,119940.0,119930.0,1.20780387]
[1752516051673,0.0024,119950.0,119940.0,0.62076078]
[1752516051876,0.46331014,119970.0,119960.0,0.02500749]
[1752516052165,0.46382267,119970.0,119960.0,1.39175789]
[1752516052402,0.46382267,119970.0,119960.0,1.39474789]
[1752516053080,0.46382267,119970.0,119960.0,1.08137363]
[1752516053304,0.46482267,119970.0,119960.0,1.08137363]
[1752516054653,0.46482267,119970.0,119960.0,1.08237363]
[1752516055674,0.46482267,119970.0,119960.0,0.95545363]
[1752516056553,0.46482267,119970.0,119960.0,1.08237363]
[1752516059205,0.46482267,119970.0,119960.0,0.95545363]
[1752516060394,0.46482267,119970.0,119960.0,1.08237363]
[1752516061739,0.59174267,119970.0,119960.0,1.08237363]
[1752516063555,0.46482267,119970.0,119960.0,0.95545363]
[1752516063754,0.59174267,119970.0,119960.0,0.95545363]
[1752516063973,0.59174267,119970.0,119960.0,1.08237363]
[1752516064175,0.46482267,119970.0,119960.0,0.95545363]
[1752516064382,0.59170267,119970.0,119960.0,0.95545363]
[1752516066765,0.46482267,119970.0,119960.0,0.95545363]
[1752516067028,0.59170267,119970.0,119960.0,1.08233363]
[1752516068808,0.46482267,119970.0,119960.0,1.08233363]
[1752516069155,0.45240267,119970.0,119960.0,1.03680074]
[1752516069366,0.0176,119990.0,119980.0,0.19169776]
[1752516069577,0.00215367,119990.0,119980.0,1.15969877]
[1752516069776,0.00215367,119990.0,119980.0,1.16272877]
[1752516069990,0.00215367,119990.0,119980.0,1.03584877]
[1752516070203,0.00215367,119990.0,119980.0,1.16272877]
[1752516070861,0.00315367,119990.0,119980.0,1.16272877]
[1752516071293,0.00315367,119990.0,119980.0,1.03584877]
[1752516071735,0.00315367,119990.0,119980.0,1.16272877]
[1752516072383,0.00415367,119990.0,119980.0,1.16272877]
[1752516073067,0.00415367,119990.0,119980.0,1.17261136]
[1752516074343,0.00415367,119990.0,119980.0,1.04573136]
[1752516074344,0.02055367,119990.0,119980.0,1.04573136]
[1752516074563,0.02055367,119990.0,119980.0,0.74502487]
[1752516074804,0.02055367,119990.0,119980.0,1.04573136]
[1752516074805,0.00415367,119990.0,119980.0,1.04573136]
[1752516075029,0.00415367,119990.0,119980.0,1.60019785]
[1752516075457,0.00415367,119990.0,119980.0,1.17261136]
[1752516075703,0.00415367,119990.0,119980.0,1.50461785]
[1752516075934,0.0188,120010.0,119980.0,1.47961453]
[1752516076152,0.0024,120010.0,120000.0,1.38683879]
[1752516076374,0.0024,120010.0,120000.0,1.4702559]
[1752516076589,0.0024,120010.0,120000.0,1.5971359]
[1752516076804,0.0024,120010.0,120000.0,1.6001659]
[1752516077027,0.0024,120010.0,120000.0,1.4732859]
[1752516077253,0.0024,120010.0,120000.0,1.6001659]
[1752516077687,0.0024,120010.0,120000.0,1.6021659]
[1752516077907,0.0024,120010.0,120000.0,1.62764989]
[1752516078157,0.0024,120010.0,120000.0,1.50076989]
[1752516078348,0.0024,120010.0,120000.0,1.64420989]
[1752516078589,0.0024,120010.0,120000.0,1.66060989]
[1752516078810,0.0336,120030.0,120020.0,0.19122918]
[1752516079017,0.00255364,120030.0,120020.0,0.61464629]
[1752516079220,0.00255364,120030.0,120020.0,1.17210278]
[1752516080115,0.00556364,120030.0,120020.0,1.04223278]
[1752516080324,0.03981364,120030.0,120020.0,1.08565567]
[1752516080542,0.03881364,120030.0,120020.0,1.08565567]
[1752516080766,0.03881364,120030.0,120020.0,1.08872567]
[1752516080982,0.03881364,120030.0,120020.0,0.96188567]
[1752516081195,0.03586364,120030.0,120020.0,1.08872567]
[1752516081418,0.01795364,120030.0,120020.0,0.96491567]
[1752516081631,0.01795364,120030.0,120020.0,1.09175567]
[1752516081848,0.00255364,120030.0,120020.0,1.47384927]
[1752516082072,0.00255364,120030.0,120020.0,1.50534927]
[1752516082348,0.00355364,120030.0,120020.0,1.20460278]
[1752516082577,0.0004,120040.0,120030.0,0.19161792]
[1752516082796,0.0004,120040.0,120030.0,1.25704801]
[1752516083014,0.0004,120040.0,120030.0,1.28147122]
[1752516083691,0.0004,120040.0,120030.0,1.62147122]
[1752516083909,0.0024,120040.0,120030.0,1.62147122]
[1752516084119,0.0024,120040.0,120030.0,1.63697122]
[1752516084333,0.0024,120040.0,120030.0,1.62147122]
[1752516084761,0.0024,120040.0,120030.0,1.49463122]
[1752516084945,0.0024,120040.0,120030.0,1.62147122]
[1752516085155,0.0024,120040.0,120030.0,1.05656315]
[1752516085370,0.0024,120040.0,120030.0,1.18336315]
[1752516085583,0.0024,120040.0,120030.0,1.21526315]
[1752516086084,0.0024,120040.0,120030.0,1.18336315]
[1752516086288,0.0024,120040.0,120030.0,1.05656315]
[1752516086514,0.03936,120040.0,120030.0,0.94872283]
[1752516086738,0.03936,120040.0,120030.0,0.19161792]
[1752516086960,0.04768993,120040.0,120030.0,0.19161792]
[1752516087172,0.03936,120040.0,120030.0,0.19161792]
[1752516087399,0.03936,120040.0,120030.0,0.60872283]
[1752516089703,0.04769007,120040.0,120030.0,0.19161792]
[1752516089962,0.03936,120040.0,120030.0,0.60872283]
[1752516090205,0.16616,120040.0,120030.0,0.60872283]
[1752516090427,0.17448993,120040.0,120030.0,0.60872283]
[1752516091077,0.1911502,120040.0,120030.0,0.60872283]
[1752516091327,0.17448993,120040.0,120030.0,0.60872283]
[1752516091549,0.16948993,120040.0,120030.0,0.60872283]
[1752516091728,0.17143993,120040.0,120030.0,0.60872283]
[1752516091990,0.18810027,120040.0,120030.0,0.19161792]
[1752516092218,0.2362418,120040.0,120030.0,0.18328716]
[1752516092452,0.3630418,120040.0,120030.0,0.19161806]
[1752516092664,0.3713729,120040.0,120030.0,0.19994889]
[1752516092878,0.43105967,120040.0,120030.0,0.17495619]
[1752516093103,0.42272926,120040.0,120030.0,0.18328723]
[1752516093322,0.42272926,120040.0,120030.0,0.19994903]
[1752516093539,0.42272926,120040.0,120030.0,0.1916182]
[1752516093891,0.42272926,120040.0,120030.0,0.1999491]
[1752516094108,0.42272926,120040.0,120030.0,0.18328723]
[1752516094315,0.02473111,120030.0,120020.0,0.18330228]
[1752516094502,0.03501215,120030.0,120020.0,0.1916338]
[1752516094757,0.0465834,120030.0,120020.0,0.1916338]
[1752516094975,0.04658249,120030.0,120020.0,0.19996525]
[1752516095183,0.04658235,120030.0,120020.0,0.19996525]
[1752516095390,0.18171339,120030.0,120020.0,0.20096525]
[1752516095602,0.17338235,120030.0,120020.0,0.61807016]
[1752516095809,0.18968235,120030.0,120020.0,0.61807016]
[1752516096035,0.06288235,120030.0,120020.0,0.61707016]
[1752516096249,0.18968235,120030.0,120020.0,0.61707016]
[1752516096459,0.19784677,120030.0,120020.0,0.61807016]
[1752516096679,0.18118483,120030.0,120020.0,0.61807016]
[1752516097546,0.16452338,120030.0,120020.0,0.61807016]
[1752516097798,0.03772338,120030.0,120020.0,0.61807016]
[1752516098022,0.16128338,120030.0,120020.0,0.61807016]
[1752516098704,0.16128338,120030.0,120020.0,0.62310016]
[1752516099360,0.15933338,120030.0,120020.0,0.62310016]
[1752516101628,0.16128338,120030.0,120020.0,0.62005016]
[1752516102702,0.05438483,120030.0,120020.0,0.61807016]
[1752516102927,0.18951573,120030.0,120020.0,0.1926338]
[1752516103159,0.31440253,120030.0,120020.0,0.001]
[1752516103381,0.66894338,120030.0,120020.0,0.001]
[1752516103594,1.21284829,120030.0,120020.0,0.001]
[1752516104161,0.21441756,120010.0,120000.0,0.002]
[1752516104385,0.42451467,120010.0,120000.0,0.00215364]
[1752516104601,0.42775467,120010.0,120000.0,0.00215364]
[1752516104830,0.44229552,120010.0,120000.0,0.00215364]
[1752516106417,0.31549552,120010.0,120000.0,0.17715363]
[1752516106631,0.44329552,120010.0,120000.0,0.00215364]
[1752516106848,0.31649552,120010.0,120000.0,0.00215364]
[1752516107077,0.44429552,120010.0,120000.0,0.00215364]
[1752516108281,0.31749552,120010.0,120000.0,0.00215364]
[1752516108730,0.44429552,120010.0,120000.0,0.00215364]
[1752516108929,0.31749552,120010.0,120000.0,0.00215364]
[1752516109084,0.44433552,120010.0,120000.0,0.00215364]
[1752516109504,0.78433552,120010.0,120000.0,0.00215364]
[1752516109708,0.70480932,120010.0,120000.0,0.00215364]
[1752516109955,0.83164932,120010.0,120000.0,0.00215364]
[1752516110164,0.78429552,120010.0,120000.0,0.00215364]
[1752516110511,0.65549552,120010.0,120000.0,0.00215364]
[1752516110733,0.78629552,120010.0,120000.0,0.00215364]
[1752516111849,0.65949552,120010.0,120000.0,0.00215364]
[1752516112070,1.20340043,120010.0,120000.0,0.00215364]
[1752516112285,1.15791777,120010.0,120000.0,0.00215364]
[1752516112515,1.28475777,120010.0,120000.0,0.00215364]
[1752516112726,1.20344043,120010.0,120000.0,0.00215364]
[1752516113467,0.78633552,120010.0,120000.0,0.00215364]
[1752516113715,0.65949552,120010.0,120000.0,0.00215364]
[1752516113958,0.78633552,120010.0,120000.0,0.00215364]
[1752516116594,0.65949552,120010.0,120000.0,0.00215364]
[1752516117079,0.44637552,120010.0,120000.0,0.17715363]
[1752516117474,0.29662238,120010.0,120000.0,0.17715363]
[1752516117692,0.42350238,120010.0,120000.0,0.19381994]
[1752516118023,0.41516988,120010.0,120000.0,0.00215364]
[1752516118883,0.28828988,120010.0,120000.0,0.00215364]
[1752516119092,0.41516988,120010.0,120000.0,0.00215364]
[1752516119308,0.41516988,120010.0,120000.0,0.17715363]
[1752516119534,0.41516988,120010.0,120000.0,0.20215292]
[1752516119746,0.28828988,120010.0,120000.0,0.18548689]
[1752516119965,0.41516988,120010.0,120000.0,0.18548689]
[1752516120386,0.41516988,120010.0,120000.0,0.19382001]
[1752516120594,0.42350238,120010.0,120000.0,0.19382001]
[1752516120828,0.42346238,120010.0,120000.0,0.20215306]
[1752516121766,0.42346238,120010.0,120000.0,0.21048604]
[1752516122308,0.42346238,120010.0,120000.0,0.18548689]
[1752516122425,0.29662238,120010.0,120000.0,0.17715363]
[1752516122638,0.41512988,120010.0,120000.0,0.17715363]
[1752516122840,0.41512988,120010.0,120000.0,0.00215364]
[1752516123322,0.28828988,120010.0,120000.0,0.17715363]
[1752516123977,0.41512988,120010.0,120000.0,0.00215364]
[1752516124180,0.41512988,120010.0,120000.0,0.1688203]
[1752516124371,0.41512988,120010.0,120000.0,0.18548689]
[1752516125145,0.41512988,120010.0,120000.0,0.00215364]
[1752516126340,0.28828988,120010.0,120000.0,0.00215364]
[1752516126554,0.28828988,120010.0,120000.0,0.17715356]
[1752516126764,0.41512988,120010.0,120000.0,0.18548668]
[1752516126972,0.41512988,120010.0,120000.0,0.00215364]
[1752516127187,0.41512988,120010.0,120000.0,0.1688203]
[1752516128326,0.28828988,120010.0,120000.0,0.1688203]
[1752516128556,0.28828988,120010.0,120000.0,0.00215364]
[1752516128784,0.28828988,120010.0,120000.0,0.17715356]
[1752516128984,0.41512988,120010.0,120000.0,0.00215364]
[1752516129215,0.28828988,120010.0,120000.0,0.17715363]
[1752516129435,0.28828988,120010.0,120000.0,0.01048697]
[1752516129651,0.41512988,120010.0,120000.0,0.00215364]
[1752516131814,0.30283073,120010.0,120000.0,0.00215364]
[1752516132019,0.85731901,120010.0,120000.0,0.00215364]
[1752516132252,0.73047901,120010.0,120000.0,0.00215364]
[1752516132470,0.81179635,120010.0,120000.0,0.00215364]
[1752516132680,0.85098807,120010.0,120000.0,0.00215364]
[1752516132893,1.15179635,120010.0,120000.0,0.00215364]
[1752516133096,0.72414807,120010.0,120000.0,0.00215364]
[1752516133305,0.76967073,120010.0,120000.0,0.00215364]
[1752516134335,1.18543531,120010.0,120000.0,0.00215364]
[1752516134962,1.18743531,120010.0,120000.0,0.00215364]
[1752516135800,1.06059531,120010.0,120000.0,0.00215364]
[1752516136029,1.26875265,120010.0,120000.0,0.00215364]
[1752516136497,1.18743531,120010.0,120000.0,0.00215364]
[1752516140689,1.06059531,120010.0,120000.0,0.00215364]
[1752516140906,1.26059531,120010.0,120000.0,0.00215364]
[1752516141127,0.84283073,120010.0,120000.0,0.00215364]
[1752516141369,1.38799531,120010.0,120000.0,0.00215364]
[1752516141609,1.38807531,120010.0,120000.0,0.00215364]
[1752516142060,1.38607531,120010.0,120000.0,0.00215364]
[1752516142289,1.38603531,120010.0,120000.0,0.00215364]
[1752516143015,1.26493031,120010.0,120000.0,1e-08]
[1752516143244,1.44249031,120010.0,120000.0,1e-08]
[1752516143469,1.31493031,120010.0,120000.0,1e-08]
[1752516143720,1.44257031,120010.0,120000.0,1e-08]
[1752516143937,1.39624765,120010.0,120000.0,1e-08]
[1752516144149,1.92392765,120010.0,120000.0,1e-08]
[1752516144361,1.94385446,120010.0,120000.0,1e-08]
[1752516144772,1.94285446,120010.0,120000.0,1e-08]
[1752516144989,1.9713308,120010.0,120000.0,1e-08]
[1752516145846,0.66565354,119990.0,119980.0,0.00231883]
[1752516146058,1.13960799,119990.0,119980.0,0.00231883]
[1752516146278,1.52956799,119990.0,119980.0,0.00231883]
[1752516146483,1.95770799,119990.0,119980.0,0.00231883]
[1752516146748,1.9796348,119990.0,119980.0,0.00231883]
[1752516147612,1.9796348,119990.0,119980.0,0.00431883]
[1752516148909,1.46070656,119990.0,119980.0,1e-08]
[1752516149143,2.00607114,119990.0,119980.0,1e-08]
[1752516149359,1.87847114,119990.0,119980.0,1e-08]
[1752516149568,2.00611114,119990.0,119980.0,1e-08]
[1752516150201,0.56961952,119970.0,119960.0,0.002]
[1752516150428,1.47697385,119970.0,119960.0,0.00215367]
[1752516150645,1.50208066,119970.0,119960.0,0.00215367]
[1752516150857,1.39945366,119970.0,119960.0,0.00215367]
[1752516151064,1.42593,119970.0,119960.0,0.00215367]
[1752516151274,1.80361,119970.0,119960.0,0.00215367]
[1752516151750,1.80361,119970.0,119960.0,0.00515367]
[1752516152147,1.80361,119970.0,119960.0,1e-08]
[1752516152148,1.80357,119970.0,119960.0,1e-08]
[1752516152362,1.78164319,119970.0,119960.0,1e-08]
[1752516152572,1.80215777,119970.0,119960.0,1e-08]
[1752516152986,2.64092907,119970.0,119960.0,1e-08]
[1752516153198,0.52340925,119950.0,119940.0,0.002]
[1752516153416,1.28539736,119950.0,119940.0,0.00251253]
[1752516153610,1.11376522,119950.0,119940.0,0.00251253]
[1752516153849,1.24458522,119950.0,119940.0,0.00251253]
[1752516154518,1.26982278,119950.0,119940.0,0.00251253]
[1752516154732,1.14218278,119950.0,119940.0,0.00251253]
[1752516154955,1.35114012,119950.0,119940.0,0.00251253]
[1752516155178,1.35110012,119950.0,119940.0,0.00251253]
[1752516155650,1.22350012,119950.0,119940.0,0.00251253]
[1752516155865,1.32462378,119950.0,119940.0,0.00251253]
[1752516156295,1.35114012,119950.0,119940.0,0.00251253]
[1752516156728,1.32466378,119950.0,119940.0,0.00251253]
[1752516156948,1.3081492,119950.0,119940.0,0.00251253]
[1752516157376,1.1805092,119950.0,119940.0,0.00251253]
[1752516157580,1.3081892,119950.0,119940.0,0.00251253]
[1752516157791,1.3049692,119950.0,119940.0,0.00457253]
[1752516158003,0.75097721,119950.0,119940.0,0.00778253]
[1752516158231,0.72809991,119950.0,119940.0,0.00778253]
[1752516158452,0.74264076,119950.0,119940.0,0.00778253]
[1752516159530,0.73864076,119950.0,119940.0,0.00778253]
[1752516159737,0.7303041,119950.0,119940.0,0.00778253]
[1752516159944,0.7323041,119950.0,119940.0,0.00778253]
[1752516160152,0.74064076,119950.0,119940.0,0.00778253]
[1752516163352,0.74064076,119950.0,119940.0,0.2076075]
[1752516163554,0.10835647,119950.0,119940.0,0.66854967]
[1752516163757,0.40277261,119950.0,119940.0,0.66021266]
[1752516163963,0.40277261,119950.0,119940.0,0.66854981]
[1752516164115,0.41110934,119950.0,119940.0,0.67688689]
[1752516164328,0.40277309,119950.0,119940.0,0.2236075]
[1752516164524,0.45138742,119950.0,119940.0,0.65287544]
[1752516164735,0.45138742,119950.0,119940.0,0.66841514]
[1752516165361,0.45138742,119950.0,119940.0,0.2401472]
[1752516165576,0.39443664,119950.0,119940.0,0.25682178]
[1752516165785,0.2277005,119950.0,119940.0,0.25682178]
[1752516165978,0.2257005,119950.0,119940.0,0.26515837]
[1752516166248,0.2257005,119950.0,119940.0,0.69442631]
[1752516166470,0.39243664,119950.0,119940.0,0.69442631]
[1752516166711,0.40077344,119950.0,119940.0,0.67775222]
[1752516167420,0.40077344,119950.0,119940.0,0.68608937]
[1752516167629,0.2257005,119950.0,119940.0,0.69442638]
[1752516168931,0.09801981,119950.0,119940.0,0.69442638]
[1752516169135,0.23403647,119950.0,119940.0,0.69442638]
[1752516169591,0.40910941,119950.0,119940.0,0.68608937]
[1752516169762,0.40910941,119950.0,119940.0,0.69442645]
[1752516170207,0.40910941,119950.0,119940.0,0.69442603]
[1752516170738,0.23403647,119950.0,119940.0,0.69442603]
[1752516171789,0.40910934,119950.0,119940.0,0.69442603]
[1752516171988,0.41744614,119950.0,119940.0,0.69442603]
[1752516172585,0.25071,119950.0,119940.0,0.69442603]
[1752516172985,0.25071,119950.0,119940.0,0.67888633]
[1752516173190,0.25071,119950.0,119940.0,0.69446838]
[1752516173191,0.41744614,119950.0,119940.0,0.69446838]
[1752516173613,0.41744614,119950.0,119940.0,0.68613137]
[1752516173827,0.40910989,119950.0,119940.0,0.68613137]
[1752516174042,0.39243678,119950.0,119940.0,0.23285198]
[1752516174257,0.38410005,119950.0,119940.0,0.02536458]
[1752516174831,0.25642005,119950.0,119940.0,0.20045205]
[1752516175041,0.38402005,119950.0,119940.0,0.20045205]
[1752516175255,0.38402005,119950.0,119940.0,0.02536458]
[1752516175463,0.25642005,119950.0,119940.0,0.02536458]
[1752516175648,0.45040173,119950.0,119940.0,0.02536458]
[1752516175886,0.41745005,119950.0,119940.0,0.02536458]
[1752516176092,0.28977005,119950.0,119940.0,0.02536458]
[1752516176305,0.41745005,119950.0,119940.0,0.02536458]
[1752516176521,0.28772005,119950.0,119940.0,0.02536458]
[1752516176735,0.38410005,119950.0,119940.0,0.02536458]
[1752516177641,0.41853005,119950.0,119940.0,0.02536458]
[1752516177859,0.41853005,119950.0,119940.0,0.02215458]
[1752516178385,0.41853005,119950.0,119940.0,0.02536458]
[1752516178601,0.29077005,119950.0,119940.0,0.02536458]
[1752516178819,0.41648005,119950.0,119940.0,0.02536458]
[1752516179245,0.81807618,119950.0,119940.0,0.02009458]
[1752516179461,1.15807618,119950.0,119940.0,1e-08]
[1752516179681,0.28028068,119930.0,119920.0,1e-08]
[1752516179918,1.94801367,119930.0,119920.0,0.0001538]
[1752516180173,1.20404307,119930.0,119920.0,0.0001538]
[1752516180402,0.74492573,119930.0,119920.0,0.0001538]
[1752516180619,0.92276573,119930.0,119920.0,0.0001538]
[1752516180824,0.87276573,119930.0,119920.0,0.0001538]
[1752516181072,0.87610173,119930.0,119920.0,0.0001538]
[1752516181294,0.96889265,119930.0,119920.0,0.0001538]
[1752516182390,0.54062471,119930.0,119920.0,0.0001538]
[1752516182602,1.10173531,119930.0,119920.0,0.0001538]
[1752516182823,1.23057531,119930.0,119920.0,0.0001538]
[1752516186842,0.80230737,119930.0,119920.0,0.0001538]
[1752516187033,1.23057531,119930.0,119920.0,0.0001538]
[1752516187231,1.31189265,119930.0,119920.0,0.0001538]
[1752516192066,1.31185265,119930.0,119920.0,0.0001538]
[1752516194126,1.18405265,119930.0,119920.0,0.0001538]
[1752516194347,1.18405265,119930.0,119920.0,1e-08]
[1752516194348,1.84008059,119930.0,119920.0,1e-08]
[1752516194555,1.86655693,119930.0,119920.0,1e-08]
[1752516194962,2.26655693,119930.0,119920.0,1e-08]
[1752516195588,6.86655693,119930.0,119920.0,1e-08]
[1752516195795,6.88706959,119930.0,119920.0,1e-08]
[1752516196402,6.86655693,119930.0,119920.0,1e-08]
[1752516196607,7.26555693,119930.0,119920.0,1e-08]
[1752516196834,7.28806959,119930.0,119920.0,1e-08]
[1752516197439,7.77606959,119930.0,119920.0,1e-08]
[1752516197617,7.78006959,119930.0,119920.0,1e-08]
[1752516197822,6.92353371,119930.0,119920.0,1e-08]
[1752516200358,6.37526105,119930.0,119920.0,1e-08]
[1752516200616,1.62658471,119930.0,119920.0,1e-08]
[1752516202185,1.61658471,119930.0,119920.0,1e-08]
[1752516202418,1.62492276,119930.0,119920.0,1e-08]
[1752516202853,1.62492276,119930.0,119880.0,0.0024]
[1752516202854,0.03122232,119890.0,119880.0,0.0024]
[1752516203065,0.03122232,119890.0,119880.0,0.00255382]
[1752516203066,1.00186306,119890.0,119880.0,0.00255382]
[1752516203275,1.00484306,119890.0,119880.0,0.00255382]
[1752516203487,1.43675695,119890.0,119880.0,0.00255382]
[1752516204120,1.43675695,119890.0,119880.0,0.00355382]
[1752516204337,1.43775695,119890.0,119880.0,0.00555382]
[1752516204537,1.00948901,119890.0,119880.0,0.00555382]
[1752516204778,1.43775695,119890.0,119880.0,0.00555382]
[1752516204994,1.51485639,119890.0,119880.0,0.00555382]
[1752516205202,1.53979317,119890.0,119880.0,0.00555382]
[1752516205408,1.43775695,119890.0,119880.0,0.00555382]
[1752516205619,1.00550901,119890.0,119880.0,0.00561382]
[1752516205826,1.40271695,119890.0,119880.0,0.00859382]
[1752516206267,1.40271695,119890.0,119880.0,0.00759382]
[1752516206682,1.40371695,119890.0,119880.0,0.00759382]
[1752516206895,1.28905945,119890.0,119880.0,0.00759382]
[1752516207103,1.40164695,119890.0,119880.0,0.00759382]
[1752516207569,1.37661695,119890.0,119880.0,0.00759382]
[1752516207993,1.37761695,119890.0,119880.0,0.00859382]
[1752516209076,1.24973695,119890.0,119880.0,0.00859382]
[1752516209282,1.37761695,119890.0,119880.0,0.00859382]
[1752516209690,1.42749155,119890.0,119880.0,0.00859382]
[1752516210546,0.94930901,119890.0,119880.0,0.00859382]
[1752516210974,0.94930901,119890.0,119880.0,0.00863382]
[1752516211190,0.94930901,119890.0,119880.0,0.02393382]
[1752516211414,1.37757695,119890.0,119880.0,0.02393382]
[1752516211629,1.37757695,119890.0,119880.0,0.00863382]
[1752516211836,1.45889429,119890.0,119880.0,0.00863382]
[1752516212739,0.82146901,119890.0,119880.0,0.00863382]
[1752516212951,0.47526913,119890.0,119880.0,0.64317679]
[1752516213169,0.60302913,119890.0,119880.0,0.21490885]
[1752516213817,0.60302913,119890.0,119880.0,0.2315917]
[1752516214251,0.60302913,119890.0,119880.0,0.22325031]
[1752516214465,0.5936885,119890.0,119880.0,0.22225045]
[1752516214673,0.5936885,119890.0,119880.0,0.23059191]
[1752516214885,0.5946885,119890.0,119880.0,0.2419333]
[1752516215109,0.42786858,119890.0,119880.0,0.25027455]
[1752516215352,0.60202906,119890.0,119880.0,0.2335917]
[1752516215556,0.60202906,119890.0,119880.0,0.21690885]
[1752516215762,0.60202906,119890.0,119880.0,0.21890885]
[1752516215905,0.59368843,119890.0,119880.0,0.21890885]
[1752516216320,0.58534759,119890.0,119880.0,0.21056732]
[1752516216710,0.38526759,119890.0,119880.0,0.04373382]
[1752516217064,0.38526759,119890.0,119880.0,0.02813382]
[1752516217677,0.81353553,119890.0,119880.0,0.01263382]
[1752516218093,0.38526759,119890.0,119880.0,0.01263382]
[1752516218664,0.38526759,119890.0,119880.0,0.04323382]
[1752516219969,0.38526759,119890.0,119880.0,0.02823382]
[1752516220406,0.38526759,119890.0,119880.0,0.19506732]
[1752516220624,0.38526759,119890.0,119880.0,0.21076732]
[1752516220855,0.37692669,119890.0,119880.0,0.04393382]
[1752516222795,0.37692669,119890.0,119880.0,0.01263382]
[1752516223041,0.37692669,119890.0,119880.0,0.02893382]
[1752516223257,0.38526759,119890.0,119880.0,0.04453382]
[1752516223496,0.82807638,119890.0,119880.0,0.01263382]
[1752516224966,0.39980844,119890.0,119880.0,0.18780899]
[1752516225179,0.38526759,119890.0,119880.0,0.21940899]
[1752516226173,0.25750759,119890.0,119880.0,0.21940899]
[1752516226384,0.38502759,119890.0,119880.0,0.22775052]
[1752516227137,0.38502759,119890.0,119880.0,0.21940899]
[1752516227363,0.38502759,119890.0,119880.0,0.22775059]
[1752516227601,0.38502759,119890.0,119880.0,0.04423382]
[1752516228655,0.46634493,119890.0,119880.0,0.01263382]
[1752516228920,0.38502759,119890.0,119880.0,0.01263382]
[1752516229426,0.81329553,119890.0,119880.0,0.01263382]
[1752516230915,0.38502759,119890.0,119880.0,0.01263382]